Workbook

Sheet Einkommensstrategie
C3: Ihre persönliche EINKOMMENSSTRATEGIE
C4: Ihre Vorgaben: | I4: =TODAY() -> 2017-07-10
I5: =YEAR(D6) -> 1967
C6: Geburtsdatum | D6: 1967-08-22 | F6: Sie sind heute | G6: =CONCATENATE(I6-I5," Jahre alt.") -> 50 Jahre alt. | I6: =YEAR(I4) -> 2017
C7: Anlagebetrag | D7: 100000
C8: gewünschter Rentenbeginn | D8: 65
C9: 1. Phase bis zum Lebensjahr | D9: 75 | F9: mit einem Anteil von | G9: 60 | H9: % bei einer Rendite von | I9: 2 | J9: %
C10: 2. Phase bis zum Lebensjahr | D10: 85 | F10: mit einem Anteil von | G10: 30 | H10: % bei einer Rendite von | I10: 4 | J10: %
C11: 3. Phase bis zum Lebensjahr | D11: 100 | F11: mit einem Anteil von | G11: 10 | H11: % bei einer Rendite von | I11: 6 | J11: %
C12: Produktkosten | D12: 1 | E12: %
C13: Rendite Auszahlungsplan | D13: 2 | E13: % | G13: =IF(SUM(G9:G11)<>100,"Die Summe der Anteile müssen 100% ergeben!","") -> 
C16: Ihre Einkommensstrategie:
C18: Phase 1
C19: Beginn: | D19: =$I$6+($D$8-($I$6-$I$5)) -> 2032 | E19: =CONCATENATE("in ",($D$8-($I$6-$I$5))," Jahren mit Ihrem ",$D$8,". Lebensjahr") -> in 15 Jahren mit Ihrem 65. Lebensjahr
C20: Anlage: | D20: =D7*G9/100 -> 60000
C21: =CONCATENATE("Guthaben zum ",D8,". Lebensjahr") -> Guthaben zum 65. Lebensjahr | D21: =$D$20*(1+($I$9-$D$12)/100)^($D$8-($I$6-$I$5)) -> 69658.13732
C22: monatlicher Auszahlungsbetrag: | D22: =PMT(D13%/12,(D9-D8)*12,D21,0,1)*-1 -> 639.8821101 | E22: in Phase 1
C24: Phase 2
C25: Beginn: | D25: =$I$6+($D$9-($I$6-$I$5)) -> 2042 | E25: =CONCATENATE("in ",($D$9-($I$6-$I$5))," Jahren mit Ihrem ",$D$9,". Lebensjahr") -> in 25 Jahren mit Ihrem 75. Lebensjahr
C26: Anlage: | D26: =D7*G10/100 -> 30000
C27: =CONCATENATE("Guthaben zum ",D9,". Lebensjahr") -> Guthaben zum 75. Lebensjahr | D27: =$D$26*(1+($I$10-$D$12)/100)^($D$9-($I$6-$I$5)) -> 62813.33789
C28: monatlicher Auszahlungsbetrag: | D28: =PMT(D13%/12,(D10-D9)*12,D27,0,1)*-1 -> 577.0055408 | E28: in Phase 2
C30: Phase 3
C31: Beginn: | D31: =$I$6+($D$10-($I$6-$I$5)) -> 2052 | E31: =CONCATENATE("in ",($D$10-($I$6-$I$5))," Jahren mit Ihrem ",$D$10,". Lebensjahr") -> in 35 Jahren mit Ihrem 85. Lebensjahr
C32: Anlage: | D32: =D7*G11/100 -> 10000
C33: =CONCATENATE("Guthaben zum ",D10,". Lebensjahr") -> Guthaben zum 85. Lebensjahr | D33: =$D$32*(1+($I$11-$D$12)/100)^($D$10-($I$6-$I$5)) -> 55160.15368
C34: monatlicher Auszahlungsbetrag: | D34: =PMT(D13%/12,(D11-D10)*12,D33,0,1)*-1 -> 354.3697719 | E34: in Phase 3
C76: =10 -> 10 | D76: RES | F76: =D7 -> 100000
C77: =I9 -> 2 | D77: =D22 -> 639.8821101 | F77: =D77 -> 639.8821101 | G77: =CONCATENATE(C77,"%") -> 2%
C78: =D13 -> 2 | F78: =CONCATENATE(C78,"%") -> 2%
C79: =I10 -> 4 | D79: =D28 -> 577.0055408 | F79: =D79 -> 577.0055408 | G79: =CONCATENATE(C79,"%") -> 4%
C80: =D13 -> 2 | F80: =F78 -> 2%
C81: =I11 -> 6 | D81: =D34 -> 354.3697719 | F81: =D81 -> 354.3697719 | G81: =CONCATENATE(C81,"%") -> 6%
F82: =F80 -> 2%
F83: =CONCATENATE("1. Phase (",$D$8,"-",$D$9,")") -> 1. Phase (65-75)
F84: =CONCATENATE("2. Phase (",$D$9,"-",$D$10,")") -> 2. Phase (75-85)
F85: =CONCATENATE("3. Phase (",$D$10,"-",$D$11,")") -> 3. Phase (85-100)
